bitfinex/quotes_SOLUSD_20250819
["timestamp","ask_amount","ask_price","bid_price","bid_amount"]
[1755611866909,0.06,182.83,182.82,11.37752771]
[1755611867816,11.44752771,182.83,182.78,0.69]
[1755611868022,43.5,182.82,182.78,11.37752771]
[1755611868205,43.5,182.82,182.78,10.68752771]
[1755611868519,43.5,182.82,182.79,10.68752771]
[1755611870387,43.5,182.82,182.78,10.68752771]
[1755611870589,0.7,182.81,182.74,32.19196088]
[1755611870780,0.7,182.81,182.75,10.68752771]
[1755611870781,16.15798722,182.8,182.75,10.68752771]
[1755611870987,44.18,182.79,182.74,10.71752771]
[1755611871194,43.48,182.79,182.76,10.68752771]
[1755611871628,44.18,182.79,182.76,10.68752771]
[1755611872421,0.7,182.78,182.74,0.03]
[1755611872604,48.95080791,182.79,182.75,10.68752771]
[1755611873013,48.95080791,182.79,182.76,10.68752771]
[1755611873411,49.65080791,182.79,182.76,10.68752771]
[1755611874440,48.95080791,182.79,182.74,0.03]
[1755611874623,10.68752771,182.76,182.74,0.03]
[1755611874795,43.46,182.75,182.74,0.03]
[1755611876199,43.46,182.75,182.74,11.40752771]
[1755611876508,43.46,182.75,182.74,10.71752771]
[1755611876709,43.46,182.75,182.74,0.03]
[1755611877915,43.46,182.75,182.74,10.71752771]
[1755611878498,0.7,182.82,182.74,11.40752771]
[1755611878726,43.44,182.81,182.79,10.68752771]
[1755611879048,43.44,182.81,182.75,0.69]
[1755611879203,0.7,182.8,182.75,0.69]
[1755611879403,54.12752771,182.81,182.75,10.68752771]
[1755611879632,0.7,182.79,182.74,0.03]
[1755611879842,44.14,182.78,182.74,10.71752771]
[1755611880004,0.7,182.77,182.74,10.71752771]
[1755611880204,0.7,182.77,182.75,10.68752771]
[1755611880415,5.52964927,182.83,182.76,10.68752771]
[1755611880627,43.42,182.82,182.79,10.68752771]
[1755611880819,0.7,182.81,182.77,10.68752771]
[1755611881030,0.7,182.8,182.74,0.03]
[1755611881213,69.42,182.79,182.74,0.03]
[1755611881540,10.68752771,182.75,182.74,0.03]
[1755611881748,26.0,182.72,182.71,0.03]
[1755611881900,83.77618696,182.72,182.7,0.2]
[1755611882106,18.68685821,182.71,182.7,0.2]
[1755611882520,37.75544455,182.71,182.7,1e-08]
[1755611883059,13.47232283,182.71,182.7,1e-08]
[1755611883234,24.15985054,182.71,182.7,1e-08]
[1755611883717,37.75544455,182.71,182.69,1e-08]
[1755611883914,44.69669637,182.7,182.69,1e-08]
[1755611884115,26.0,182.69,182.61,0.03]
[1755611884303,10.68752771,182.65,182.61,0.03]
[1755611884503,32.75163362,182.71,182.61,0.03]
[1755611884504,19.15603961,182.71,182.64,10.68752771]
[1755611884706,10.68752771,182.69,182.63,10.68752771]
[1755611884931,10.68752771,182.67,182.61,10.71752771]
[1755611885117,70.13,182.7,182.62,10.68752771]
[1755611885118,43.42,182.66,182.62,10.68752771]
[1755611885307,43.42,182.65,182.63,0.71]
[1755611885508,43.42,182.65,182.61,0.74]
[1755611885716,43.42,182.65,182.62,11.39752771]
[1755611886013,43.42,182.65,182.63,11.39752771]
[1755611886216,43.42,182.65,182.64,0.71]
[1755611886806,43.42,182.65,182.64,16.90277957]
[1755611887010,43.42,182.69,182.64,16.90277957]
[1755611887222,43.42,182.7,182.65,0.71]
[1755611887447,43.42,182.7,182.68,10.68752771]
[1755611887624,43.42,182.7,182.66,0.71]
[1755611887943,43.42,182.7,182.66,0.03]
[1755611888615,43.42,182.7,182.66,10.71752771]
[1755611888816,48.89362541,182.7,182.66,10.71752771]
[1755611889023,48.89362541,182.7,182.66,11.42752771]
[1755611889317,43.42,182.7,182.68,10.68752771]
[1755611889547,43.42,182.7,182.69,10.68752771]
[1755611889747,43.42,182.7,182.68,10.68752771]
[1755611890110,43.42,182.7,182.69,10.68752771]
[1755611890414,43.42,182.7,182.68,10.68752771]
[1755611890615,43.42,182.7,182.69,10.68752771]
[1755611890908,43.42,182.7,182.69,11.39752771]
[1755611891327,43.42,182.7,182.69,16.87128106]
[1755611891741,0.06,182.75,182.69,16.87128106]
[1755611891742,43.4,182.73,182.69,16.87128106]
[1755611891938,43.4,182.73,182.72,10.68752771]
[1755611892244,43.4,182.73,182.72,11.39752771]
[1755611892632,0.06,182.75,182.72,11.39752771]
[1755611892828,0.06,182.75,182.69,26.0]
[1755611893025,0.06,182.75,182.71,10.68752771]
[1755611893231,0.06,182.75,182.72,0.71]
[1755611894616,0.71,182.74,182.71,10.68752771]
[1755611894815,0.06,182.75,182.72,11.39752771]
[1755611895021,0.06,182.75,182.74,10.68752771]
[1755611895628,0.06,182.75,182.73,10.68752771]
[1755611895851,26.0,182.71,182.66,0.03]
[1755611896017,54.06752771,182.7,182.66,0.03]
[1755611896221,43.38,182.69,182.67,0.71]
[1755611896451,43.38,182.69,182.66,0.03]
[1755611896660,54.06752771,182.69,182.66,0.03]
[1755611896861,43.38,182.69,182.66,0.03]
[1755611897033,43.38,182.69,182.66,0.74]
[1755611898135,48.85387438,182.69,182.66,0.03]
[1755611898442,5.47435265,182.67,182.66,0.03]
[1755611898640,16.16188036,182.67,182.66,0.03]
[1755611898952,16.87188036,182.67,182.66,0.03]
[1755611899153,20.50111955,182.67,182.66,0.03]
[1755611899450,24.16978814,182.67,182.66,0.03]
[1755611900440,24.16961876,182.67,182.66,0.03]
[1755611901050,23.45961876,182.67,182.66,0.03]
[1755611901348,17.98526611,182.67,182.66,0.03]
[1755611901557,7.2977384,182.67,182.66,0.03]
[1755611901727,12.77209105,182.67,182.66,0.03]
[1755611901950,7.2977384,182.67,182.66,0.03]
[1755611902364,17.98526611,182.67,182.66,0.03]
[1755611902672,3.66866859,182.67,182.66,0.03]
[1755611902968,3.66866859,182.68,182.66,0.03]
[1755611903173,43.38,182.69,182.66,0.03]
[1755611904180,43.38,182.69,182.66,0.74]
[1755611904349,43.38,182.69,182.66,0.03]
[1755611904545,10.68752771,182.67,182.66,0.03]
[1755611905095,16.87188036,182.67,182.66,0.03]
[1755611905777,43.38,182.69,182.66,0.03]
[1755611905947,10.68752771,182.68,182.66,0.03]
[1755611906370,54.06752771,182.69,182.66,0.03]
[1755611907450,43.38,182.69,182.66,0.03]
[1755611907959,59.54128611,182.69,182.66,0.03]
[1755611908158,10.68752771,182.68,182.66,0.03]
[1755611908365,60.25128611,182.69,182.66,0.03]
[1755611908779,0.71,182.68,182.66,0.03]
[1755611909247,60.25128611,182.69,182.66,0.03]
[1755611909449,49.5637584,182.69,182.66,0.03]
[1755611909652,11.39752771,182.68,182.66,0.03]
[1755611909868,16.16188036,182.67,182.66,0.03]
[1755611910078,6.18435265,182.67,182.66,0.03]
[1755611910280,16.87188036,182.67,182.66,0.03]
[1755611911050,24.13443667,182.67,182.66,0.03]
[1755611911690,16.87188036,182.67,182.66,0.03]
[1755611911855,20.5382572,182.67,182.66,0.03]
[1755611912053,16.87188036,182.67,182.66,0.03]
[1755611912255,43.38,182.69,182.66,0.03]
[1755611912479,54.06752771,182.69,182.66,0.03]
[1755611912656,10.68752771,182.68,182.66,0.03]
[1755611913587,59.54139816,182.69,182.66,0.03]
[1755611914087,10.68752771,182.68,182.66,0.03]
[1755611914697,11.34752771,182.68,182.66,0.03]
[1755611914883,15.01865742,182.68,182.66,0.03]
[1755611915362,48.77435265,182.67,182.66,0.03]
[1755611915975,59.46188036,182.67,182.66,0.03]
[1755611916173,63.79493739,182.67,182.66,0.03]
[1755611916482,60.12188036,182.67,182.66,0.03]
[1755611916796,80.99667875,182.67,182.66,0.03]
[1755611917364,31.47495209,182.65,182.64,0.03]
[1755611917594,92.72168418,182.65,182.64,0.03]
[1755611917768,93.34168418,182.65,182.64,0.03]
[1755611918292,79.04865115,182.65,182.64,0.03]
[1755611918500,93.34288811,182.65,182.64,0.03]
[1755611919284,93.34288811,182.65,182.64,1e-08]
[1755611919285,106.93848212,182.65,182.64,1e-08]
[1755611919586,106.93848212,182.65,182.62,0.03]
[1755611919587,13.59559401,182.64,182.62,0.03]
[1755611919786,87.24793602,182.63,182.62,0.03]
[1755611919967,87.86793602,182.63,182.62,0.03]
[1755611920877,93.34348768,182.63,182.62,0.03]
[1755611921601,93.34140595,182.63,182.62,0.03]
[1755611922271,13.59559401,182.62,182.56,0.03]
[1755611922473,74.8214483,182.61,182.6,1e-08]
[1755611922786,75.4814483,182.61,182.6,1e-08]
[1755611922993,80.95759966,182.61,182.6,1e-08]
[1755611924184,85.54741569,182.61,182.6,1e-08]
[1755611924363,80.95759966,182.61,182.6,1e-08]
[1755611924565,85.54939091,182.61,182.6,1e-08]
[1755611925297,12.75447794,182.61,182.6,1e-08]
[1755611925476,66.68200565,182.61,182.6,1e-08]
[1755611926179,56.65447794,182.61,182.6,1e-08]
[1755611926383,66.68200565,182.61,182.6,1e-08]
[1755611927296,63.73737813,182.61,182.6,1e-08]
[1755611927468,66.67847487,182.61,182.6,1e-08]
[1755611928087,67.33847487,182.61,182.6,1e-08]
[1755611929016,80.93406888,182.61,182.6,1e-08]
[1755611929783,85.52586013,182.61,182.6,1e-08]
[1755611931185,80.93406888,182.61,182.6,1e-08]
[1755611931401,80.27406888,182.61,182.59,1e-08]
[1755611931713,80.27406888,182.61,182.56,0.03]
[1755611931714,39.59559401,182.57,182.56,0.03]
[1755611931879,100.77791752,182.57,182.56,0.03]
[1755611932085,101.43791752,182.57,182.56,0.03]
[1755611932490,83.58122677,182.57,182.56,0.03]
[1755611932690,29.67369906,182.57,182.56,0.71]
[1755611933000,57.56122677,182.57,182.56,0.71]
[1755611933184,63.03857792,182.57,182.56,0.03]
[1755611933394,13.6903784,182.61,182.56,0.71]
[1755611933589,43.2,182.6,182.56,0.71]
[1755611933790,43.2,182.59,182.56,11.39752771]
[1755611934094,43.2,182.58,182.57,0.68]
[1755611935513,5.47563987,182.63,182.57,13.03929259]
[1755611935806,43.2,182.62,182.59,6.88194144]
[1755611936012,43.2,182.62,182.57,5.47735115]
[1755611936013,31.53503054,182.65,182.6,6.88194144]
[1755611936216,43.2,182.64,182.61,7.56194144]
[1755611936383,43.2,182.64,182.62,0.68]
[1755611936590,43.2,182.64,182.63,0.68]
[1755611937998,43.2,182.64,182.61,0.68]
[1755611938198,43.2,182.64,182.62,0.68]
[1755611938815,48.67529545,182.64,182.62,0.68]
[1755611939123,48.67529545,182.64,182.59,0.68]
[1755611939124,59.37489773,182.64,182.59,0.68]
[1755611939325,10.69960228,182.63,182.59,0.68]
[1755611939505,43.18,182.62,182.59,0.68]
[1755611939911,10.69960228,182.61,182.59,0.68]
[1755611940112,53.87960228,182.6,182.56,0.71]
[1755611940316,43.18,182.6,182.56,0.71]
[1755611940501,43.18,182.6,182.57,0.68]
[1755611940700,43.18,182.6,182.58,0.68]
[1755611942017,48.6565467,182.6,182.56,0.71]
[1755611942208,43.18,182.6,182.57,0.68]
[1755611942393,48.65648971,182.6,182.56,0.03]
[1755611942599,48.65648971,182.6,182.56,0.71]
[1755611943299,10.69960228,182.57,182.56,0.03]
[1755611943621,59.31695343,182.57,182.56,0.03]
[1755611943800,48.61735115,182.57,182.56,0.03]
[1755611944317,52.29170487,182.57,182.56,0.03]
[1755611944627,62.99130715,182.57,182.56,0.03]
[1755611944921,63.65130715,182.57,182.56,0.03]
[1755611945999,67.24701001,182.57,182.56,0.03]
[1755611947802,67.2460372,182.57,182.56,0.03]
[1755611948609,70.14202893,182.57,182.56,0.03]
[1755611948811,80.84163121,182.57,182.56,0.03]
[1755611951634,31.47795124,182.55,182.54,0.03]
[1755611951838,78.25230496,182.55,182.54,0.03]
[1755611952125,3.67435372,182.55,182.54,0.75]
[1755611952333,43.08,182.55,182.54,0.75]
[1755611953033,43.08,182.55,182.54,11.44960228]
[1755611953329,43.08,182.55,182.54,0.75]
[1755611953707,43.08,182.55,182.54,16.92785362]
[1755611953899,43.08,182.55,182.54,6.22825134]
[1755611954101,5.4765299,182.6,182.54,16.92785362]
[1755611954310,43.08,182.59,182.55,0.72]
[1755611954540,3.67504238,182.58,182.54,0.03]
[1755611954708,10.69960228,182.56,182.54,0.03]
[1755611954909,43.08,182.55,182.54,0.03]
[1755611955298,46.75663469,182.55,182.54,0.03]
[1755611955931,46.75663469,182.55,182.54,0.75]
[1755611956301,26.0,182.57,182.54,0.75]
[1755611956501,46.75689648,182.56,182.54,0.75]
[1755611956704,3.67689648,182.55,182.54,0.75]
[1755611956903,3.67689648,182.55,182.54,0.03]
[1755611957501,3.67689648,182.55,182.54,0.75]
[1755611957926,3.67689648,182.55,182.54,0.03]
[1755611958206,3.67689648,182.55,182.54,0.75]
[1755611958514,43.08,182.56,182.54,0.75]
[1755611959438,3.68050198,182.55,182.54,0.75]
[1755611959815,43.08,182.56,182.54,0.75]
[1755611960023,43.08,182.56,182.54,0.03]
[1755611960215,43.08,182.56,182.55,11.41960228]
[1755611960422,3.68209686,182.56,182.55,7.60158595]
[1755611960618,43.04,182.57,182.55,7.60158595]
[1755611960827,43.04,182.57,182.54,12.38970769]
[1755611961026,43.04,182.57,182.55,7.60158595]
[1755611961226,43.04,182.57,182.56,0.72]
[1755611961421,46.72367426,182.57,182.56,0.72]
[1755611962552,46.72367426,182.57,182.56,11.42605038]
[1755611962714,43.04,182.57,182.56,11.42605038]
[1755611962913,43.02,182.59,182.56,16.90370156]
[1755611963136,3.68437418,182.58,182.57,0.72]
[1755611963435,3.68477594,182.58,182.57,0.72]
[1755611963641,43.02,182.59,182.57,0.72]
[1755611964131,43.02,182.59,182.55,10.70605038]
[1755611964313,43.02,182.59,182.56,11.42605038]
[1755611964513,43.02,182.59,182.58,10.70605038]
[1755611964705,46.70494764,182.59,182.58,11.42605038]
[1755611964905,46.70494764,182.59,182.56,10.70605038]
[1755611965109,43.02,182.59,182.57,0.72]
[1755611965309,3.68491753,182.58,182.54,6.22819711]
[1755611965542,43.0,182.57,182.55,10.70605038]
[1755611965831,43.0,182.57,182.55,11.42605038]
[1755611966533,43.0,182.57,182.56,0.72]
[1755611967817,43.0,182.57,182.56,16.90370156]
[1755611968333,43.0,182.57,182.56,11.42605038]
[1755611968513,43.0,182.57,182.55,10.70605038]
[1755611968713,43.0,182.57,182.55,11.42605038]
[1755611969147,43.0,182.57,182.55,10.70605038]
[1755611969621,43.0,182.57,182.55,11.42605038]
[1755611970147,43.0,182.57,182.55,16.90395377]
[1755611970724,43.0,182.57,182.55,11.42605038]
[1755611971433,43.0,182.57,182.54,16.21421114]
[1755611971748,15.05123792,182.56,182.54,0.03]
[1755611971923,3.68518754,182.55,182.54,0.03]
[1755611972247,4.34518754,182.55,182.54,0.03]
[1755611973034,9.82313878,182.55,182.54,0.03]
[1755611974032,20.52918916,182.55,182.54,0.03]
[1755611974236,24.13526876,182.55,182.54,0.03]
[1755611975155,24.13526876,182.55,182.53,0.03]
[1755611975156,13.59559401,182.54,182.53,0.03]
[1755611975361,75.21212646,182.54,182.52,0.2]
[1755611975662,75.21212646,182.54,182.51,0.03]
[1755611975663,13.59559401,182.52,182.51,0.03]
[1755611975826,31.59212646,182.52,182.51,0.03]
[1755611976029,86.78723283,182.52,182.5,0.03]
[1755611976375,32.29212646,182.51,182.5,0.03]
[1755611977666,32.29212646,182.51,182.5,1e-08]
[1755611978049,37.77127828,182.51,182.5,1e-08]
[1755611978570,42.37096044,182.51,182.5,1e-08]
[1755611980267,54.07536643,182.51,182.5,1e-08]
[1755611980557,42.9,182.51,182.5,0.70000001]
[1755611980764,26.0,182.51,182.5,0.70000001]
[1755611980949,68.9,182.51,182.5,0.70000001]
[1755611981146,46.48464986,182.51,182.5,0.70000001]
[1755611981348,3.58464986,182.51,182.5,0.70000001]
[1755611981657,46.48464986,182.51,182.5,1e-08]
[1755611981863,57.89070024,182.51,182.5,1e-08]
[1755611982063,67.04595966,182.51,182.5,1e-08]
[1755611982745,66.34595966,182.51,182.5,1e-08]
[1755611983130,67.04595966,182.51,182.5,1e-08]
[1755611983331,80.64155367,182.51,182.5,1e-08]
[1755611984342,13.59559401,182.48,182.46,0.03]
[1755611984535,79.03948454,182.47,182.46,0.03]
[1755611984738,79.74127716,182.47,182.46,0.03]
[1755611985142,79.74127716,182.47,182.46,1e-08]
[1755611985463,90.44732716,182.47,182.46,1e-08]
[1755611986185,95.92768009,182.47,182.46,1e-08]
[1755611986958,95.92463544,182.47,182.46,1e-08]
[1755611987267,48.44742271,182.47,182.46,1e-08]
[1755611987454,91.32742271,182.47,182.46,1e-08]
[1755611987762,91.32742271,182.47,182.32,13.59559401]
[1755611987763,39.59559401,182.43,182.32,0.7]
[1755611987968,10.70605038,182.36,182.32,0.7]
[1755611988183,42.86,182.35,182.32,0.7]
[1755611988358,42.86,182.35,182.33,0.7]
[1755611988564,42.86,182.35,182.34,0.7]
[1755611988943,59.05000979,182.35,182.31,0.7]
[1755611989133,59.05000979,182.35,182.29,10.70605038]
[1755611989134,14.28050213,182.34,182.29,0.7]
[1755611989336,14.28050213,182.34,182.26,5.48658412]
[1755611989337,57.14047808,182.33,182.3,0.7]
[1755611989558,42.86,182.32,182.3,0.7]
[1755611990083,16.19000979,182.35,182.3,0.7]
[1755611990245,46.43104301,182.34,182.3,0.7]
[1755611990444,57.13709339,182.33,182.31,0.7]
[1755611990685,42.86,182.33,182.31,0.7]
[1755611990973,14.27708853,182.32,182.28,0.7]
[1755611991148,42.84,182.31,182.28,0.7]
[1755611991474,42.84,182.31,182.29,0.7]
[1755611991675,42.84,182.31,182.3,0.7]
[1755611991972,46.40788636,182.31,182.3,0.7]
[1755611992278,42.84,182.31,182.28,0.7]
[1755611992468,42.84,182.31,182.29,0.7]
[1755611993261,42.84,182.31,182.3,0.7]
[1755611994850,10.70605038,182.34,182.3,0.7]
[1755611995052,46.39997056,182.33,182.31,0.7]
[1755611995257,42.84,182.33,182.31,0.7]
[1755611996445,42.84,182.33,182.32,0.7]
[1755611996643,46.39595159,182.33,182.32,0.7]
[1755611996858,46.39595159,182.33,182.29,11.40605038]
[1755611997066,42.84,182.33,182.3,0.7]
[1755611997270,10.70605038,182.35,182.31,0.7]
[1755611997479,0.7,182.41,182.32,0.7]
[1755611997642,57.0803973,182.4,182.34,10.70605038]
[1755611997848,3.55434692,182.39,182.36,10.70605038]
[1755611998070,46.37434692,182.38,182.37,11.40605038]
[1755611998248,42.82,182.38,182.34,5.48398897]
[1755611998577,42.82,182.38,182.35,0.7]
[1755611998963,42.82,182.38,182.36,0.7]
[1755611999165,42.82,182.38,182.33,0.7]
[1755611999472,42.82,182.38,182.34,0.7]
[1755611999879,42.82,182.38,182.31,13.59559401]
[1755612000051,42.82,182.38,182.35,0.7]
[1755612000251,42.82,182.38,182.32,0.7]
[1755612000562,42.88767147,182.43,182.37,10.70605038]
[1755612000769,3.55370882,182.42,182.39,10.70605038]
[1755612001083,11.40605038,182.49,182.41,10.70605038]
[1755612001378,0.06,182.46,182.42,0.7]
[1755612001674,0.06,182.46,182.44,10.70605038]
[1755612001884,42.8,182.45,182.43,11.40605038]
[1755612002176,42.8,182.45,182.43,10.70605038]
[1755612002377,42.8,182.45,182.44,11.40605038]
[1755612002879,0.06,182.5,182.45,13.59559401]
[1755612003082,0.06,182.5,182.49,10.70605038]
[1755612003692,0.06,182.5,182.49,11.38605038]
[1755612004149,0.06,182.5,182.49,16.86580269]
[1755612004354,0.06,182.5,182.48,10.70605038]
[1755612004564,0.06,182.5,182.47,0.68]
[1755612004565,0.06,182.5,182.47,10.70605038]
[1755612004766,42.84,182.5,182.45,16.18696354]
[1755612004974,54.23605038,182.5,182.44,16.8672524]
[1755612005178,10.70605038,182.49,182.42,5.48156774]
[1755612005456,10.70605038,182.47,182.42,10.70605038]
[1755612005765,42.84,182.5,182.4,10.70605038]
[1755612005766,54.15605038,182.46,182.4,10.70605038]
[1755612005959,43.45,182.46,182.39,0.68]
[1755612006161,10.70605038,182.44,182.38,10.70605038]
[1755612006361,42.76,182.46,182.42,10.70605038]
[1755612006559,42.76,182.46,182.43,10.70605038]
[1755612006762,26.06,182.5,182.45,10.70605038]
[1755612006965,26.06,182.5,182.44,0.68]
[1755612006966,42.76,182.47,182.43,10.70605038]
[1755612007171,43.45,182.47,182.43,10.70605038]
[1755612007384,0.06,182.5,182.46,10.70605038]
[1755612007567,0.06,182.5,182.49,10.70605038]
[1755612008207,0.06,182.5,182.49,16.86580269]
[1755612008678,0.06,182.5,182.46,10.70605038]
[1755612008877,42.8,182.5,182.46,10.70605038]
[1755612009084,43.49,182.5,182.42,31.48165546]
[1755612009295,11.39605038,182.49,182.43,10.70605038]
[1755612009472,0.69,182.49,182.44,10.70605038]
[1755612010258,9.73067462,182.49,182.44,10.70605038]
[1755612010585,0.69,182.48,182.4,26.0]
[1755612010774,4.25135804,182.48,182.41,10.70605038]
[1755612011179,10.70605038,182.46,182.4,10.70605038]
[1755612011361,42.72,182.45,182.41,10.70605038]
[1755612011558,42.72,182.45,182.4,10.70605038]
[1755612011770,42.72,182.45,182.37,6.19332411]
[1755612011771,0.69,182.44,182.37,6.19332411]
[1755612011979,11.39605038,182.44,182.39,10.70605038]
[1755612012175,0.69,182.44,182.39,10.70605038]
[1755612012376,42.72,182.45,182.4,10.70605038]
[1755612012571,11.39605038,182.44,182.37,5.51328164]
[1755612012883,10.70605038,182.43,182.37,16.21933202]
[1755612013279,0.69,182.44,182.37,16.21933202]
[1755612013481,48.20099259,182.45,182.38,10.70605038]
[1755612013664,59.59704297,182.45,182.39,10.70605038]
[1755612013865,10.70605038,182.44,182.37,6.19328164]
[1755612014391,16.18760494,182.43,182.37,16.89933202]
[1755612014611,14.36406841,182.44,182.38,10.70605038]
[1755612014783,19.8453819,182.44,182.38,10.70605038]
[1755612014978,3.65801803,182.44,182.39,10.70605038]
[1755612015186,3.65974135,182.44,182.39,10.70605038]
[1755612015395,42.68,182.43,182.4,10.70605038]
[1755612015609,26.0,182.45,182.42,10.70605038]
[1755612015801,68.68,182.45,182.43,11.38605038]
[1755612016184,68.68,182.45,182.42,10.70605038]
[1755612016386,42.68,182.45,182.42,11.38605038]
[1755612016992,42.68,182.45,182.41,10.70605038]
[1755612017192,42.68,182.45,182.42,10.70605038]
[1755612017391,42.68,182.45,182.44,10.70605038]
[1755612017602,6.22957312,182.5,182.44,11.38605038]
[1755612017906,46.25381065,182.49,182.45,10.70605038]
[1755612018236,46.25381065,182.49,182.38,19.19070073]
[1755612018237,42.68,182.49,182.47,10.70605038]
[1755612018584,42.68,182.49,182.46,11.38605038]
[1755612018779,42.68,182.49,182.45,10.70605038]
[1755612018985,42.68,182.49,182.46,11.38605038]
[1755612019210,42.68,182.49,182.48,10.70605038]
[1755612019595,0.06,182.5,182.48,11.38605038]
[1755612019914,0.06,182.5,182.49,10.70605038]
[1755612020094,0.06,182.5,182.47,10.70605038]
[1755612020809,0.75,182.5,182.42,26.0]
[1755612021112,15.03203792,182.5,182.44,10.70605038]
[1755612021315,4.4157034,182.5,182.43,5.48152547]
[1755612021520,3.7257034,182.5,182.46,10.70605038]
[1755612021720,0.06,182.5,182.46,11.38605038]
[1755612021890,0.06,182.5,182.49,10.70605038]
[1755612022320,0.06,182.5,182.49,11.38605038]
[1755612022526,0.06,182.5,182.49,16.86580269]
[1755612024005,0.06,182.5,182.49,10.70605038]
[1755612024406,0.06,182.5,182.49,16.18580269]
[1755612024607,0.06,182.5,182.49,16.86580269]
[1755612024804,0.06,182.5,182.49,10.70605038]
[1755612025041,0.06,182.5,182.44,0.68]
[1755612025206,0.06,182.5,182.47,10.70605038]
[1755612025410,0.06,182.5,182.49,10.70605038]
[1755612026434,0.06,182.5,182.47,10.70605038]
[1755612026603,0.06,182.5,182.46,5.48065329]
[1755612026604,0.06,182.5,182.45,0.68]
[1755612026936,0.75,182.5,182.46,10.70605038]
[1755612027240,0.69,182.49,182.44,10.70605038]
[1755612027437,0.64,182.48,182.42,0.03]
[1755612027617,10.70605038,182.44,182.42,0.03]
[1755612027940,42.6,182.43,182.42,0.03]
[1755612028252,42.6,182.43,182.42,11.41605038]
[1755612028537,42.58,182.47,182.43,6.161531]
[1755612028719,42.58,182.47,182.44,10.70605038]
[1755612029235,42.58,182.47,182.45,10.70605038]
[1755612029671,42.58,182.47,182.46,11.38605038]
[1755612029958,42.64,182.5,182.46,11.38605038]
[1755612030123,42.64,182.5,182.49,10.70605038]
[1755612030868,0.06,182.5,182.49,0.68]
[1755612031021,0.06,182.5,182.49,24.98164439]
[1755612031519,0.06,182.5,182.49,11.38605038]
[1755612032560,0.06,182.5,182.49,16.86580269]
[1755612032857,0.06,182.5,182.49,10.70605038]
[1755612034559,0.06,182.5,182.49,24.99164439]
[1755612034924,0.06,182.51,182.5,13.59559401]
[1755612035252,0.06,182.51,182.5,24.99164439]
[1755612035623,0.06,182.51,182.5,11.39605038]
[1755612035823,0.06,182.51,182.5,16.87550243]
[1755612037045,0.06,182.54,182.51,13.59559401]
[1755612037234,0.06,182.54,182.53,10.70605038]
[1755612037749,0.06,182.54,182.53,30.47019586]
[1755612037953,0.06,182.56,182.53,30.47019586]
[1755612038156,0.06,182.56,182.55,10.70605038]
[1755612038938,0.06,182.56,182.53,5.47855147]
[1755612039155,0.06,182.56,182.55,10.70605038]
[1755612040247,0.06,182.56,182.55,16.18400162]
[1755612040447,0.06,182.56,182.55,16.87400162]
[1755612041041,0.06,182.56,182.55,16.18400162]
[1755612041366,0.06,182.56,182.55,16.87400162]
[1755612041571,0.06,182.56,182.55,10.70605038]
[1755612041769,0.78,182.56,182.55,10.70605038]
[1755612042065,16.96370156,182.56,182.5,10.70605038]
[1755612042365,4.38551486,182.55,182.52,10.70605038]
[1755612042578,42.54,182.56,182.52,10.70605038]
[1755612042776,42.54,182.56,182.54,10.70605038]
[1755612043074,43.26,182.56,182.53,10.70605038]
[1755612043237,0.72,182.55,182.52,10.70605038]
[1755612043441,4.38977023,182.55,182.52,10.70605038]
[1755612044049,4.38977023,182.55,182.53,10.70605038]